bitfinex-derivatives/quotes_SOLF0:USTF0_20250117
["timestamp","ask_amount","ask_price","bid_price","bid_amount"]
[1737136091409,11.17956566,217.73,217.6,15.77326566]
[1737136091606,4.5929,217.65,217.6,15.77326566]
[1737136091813,11.17956566,217.73,217.6,15.77326566]
[1737136092112,0.84427245,217.72,217.6,15.77326566]
[1737136092807,4.593,217.65,217.6,11.17956566]
[1737136093004,4.593,217.65,217.61,4.5936]
[1737136095815,11.17956566,217.7,217.57,14.29216566]
[1737136096613,11.17956566,217.73,217.57,14.29216566]
[1737136096913,11.17956566,217.73,217.59,4.5941]
[1737136097615,4.5934,217.63,217.59,4.5941]
[1737136098211,11.17956566,217.73,217.57,14.29216566]
[1737136098412,4.5935,217.62,217.57,18.88656566]
[1737136098611,11.17956566,217.7,217.57,14.29216566]
[1737136098809,4.5946,217.57,217.52,6.1453]
[1737136099016,4.5946,217.57,217.52,1.5499]
[1737136100117,4.5946,217.57,217.53,4.5953]
[1737136101817,4.5944,217.58,217.53,4.5953]
[1737136102817,4.5944,217.58,217.54,4.5952]
[1737136106921,4.5944,217.58,217.52,12.72946566]
[1737136107123,4.5944,217.58,217.55,4.595]
[1737136108225,11.17956566,217.67,217.55,4.595]
[1737136108716,11.17956566,217.67,217.55,11.17956566]
[1737136108923,184.230308,217.68,217.58,11.17956566]
[1737136109422,184.230308,217.68,217.52,1.5499]
[1737136109423,185.524808,217.74,217.61,11.17956566]
[1737136109616,0.84425416,217.73,217.61,11.17956566]
[1737136109812,185.524808,217.74,217.61,11.17956566]
[1737136110318,1.2945,217.74,217.61,11.17956566]
[1737136110719,4.5924,217.68,217.63,4.5933]
[1737136111122,6.8465335,217.75,217.64,11.17956566]
[1737136111324,4.5916,217.71,217.67,4.5924]
[1737136112323,6.8465335,217.75,217.66,4.5926]
[1737136112521,4.5918,217.7,217.66,4.5926]
[1737136113725,4.5918,217.7,217.65,4.5929]
[1737136115328,4.592,217.69,217.65,4.5929]
[1737136115529,4.592,217.69,217.64,4.5931]
[1737136116226,18.02609916,217.75,217.62,1.5787]
[1737136116523,11.17956566,217.72,217.59,2.9638]
[1737136116923,4.5933,217.64,217.59,7.5579]
[1737136117125,11.17956566,217.72,217.59,2.9638]
[1737136117429,4.5931,217.64,217.59,7.5579]
[1737136117624,6.8465335,217.75,217.58,11.17956566]
[1737136117826,11.17956566,217.69,217.56,6.3415]
[1737136118024,4.5942,217.59,217.56,1.4415]
[1737136118821,11.17956566,217.66,217.56,1.4415]
[1737136119430,4.5939,217.61,217.56,1.4415]
[1737136120126,4.5939,217.61,217.56,6.0362]
[1737136120333,11.17956566,217.67,217.54,11.17956566]
[1737136120832,11.17956566,217.67,217.55,4.595]
[1737136121731,4.5932,217.64,217.55,4.595]
[1737136121935,11.17956566,217.67,217.55,4.595]
[1737136122230,4.5941,217.6,217.56,4.5948]
[1737136122635,11.17956566,217.67,217.54,11.17956566]
[1737136122836,4.5942,217.59,217.55,4.595]
[1737136123634,4.5947,217.57,217.53,4.5952]
[1737136123836,11.17956566,217.64,217.51,11.17956566]
[1737136124237,4.5948,217.57,217.52,4.5954]
[1737136125037,4.5948,217.56,217.52,4.5954]
[1737136125240,11.17956566,217.64,217.51,15.77526566]
[1737136125641,4.5952,217.55,217.51,15.77526566]
[1737136126143,11.17956566,217.61,217.47,86.0]
[1737136126347,1.2941,217.65,217.2,76.54566816]
[1737136126348,4.5964,217.49,217.44,4.5973]
[1737136126547,11.17956566,217.58,217.43,11.17956566]
[1737136126548,11.17956566,217.55,217.43,11.17956566]
[1737136126851,11.17956566,217.52,217.41,4.4674]
[1737136127345,4.5975,217.44,217.41,4.4674]
[1737136127751,11.17956566,217.52,217.41,4.4674]
[1737136128248,4.5972,217.45,217.41,4.4674]
[1737136128843,4.5972,217.45,217.39,4.5983]
[1737136129444,4.5972,217.45,217.37,11.17956566]
[1737136129445,11.17956566,217.55,217.44,4.5971]
[1737136129645,1.2942,217.56,217.44,4.5971]
[1737136130950,1.2942,217.56,217.45,4.5971]
[1737136132148,4.5964,217.49,217.45,4.5971]
[1737136133547,4.5964,217.49,217.44,4.5973]
[1737136133751,4.5965,217.48,217.44,4.5973]
[1737136134946,1.2942,217.56,217.36,29.44576566]
[1737136135152,4.5958,217.52,217.46,11.17956566]
[1737136135350,3.0536,217.57,217.46,11.17956566]
[1737136135549,4.5953,217.54,217.5,4.596]
[1737136135744,4.5953,217.54,217.49,11.17956566]
[1737136136847,11.17956566,217.62,217.49,11.17956566]
[1737136137052,3.1148,217.63,217.52,11.17956566]
[1737136137447,60.46174555,217.65,217.52,11.17956566]
[1737136137848,60.46174555,217.65,217.55,4.595]
[1737136138053,49.28217989,217.65,217.55,4.595]
[1737136138452,49.28217989,217.65,217.55,15.77456566]
[1737136138653,49.28217989,217.65,217.55,11.17956566]
[1737136138853,11.17956566,217.71,217.58,11.17956566]
[1737136139050,4.411,217.72,217.53,4.9]
[1737136139051,3.1148,217.72,217.61,11.17956566]
[1737136139454,3.1148,217.72,217.55,2.9927]
[1737136139650,3.1148,217.72,217.59,11.17956566]
[1737136139956,4.5927,217.66,217.61,4.5937]
[1737136140258,11.17956566,217.71,217.56,11.17956566]
[1737136141256,4.5931,217.64,217.59,4.5941]
[1737136141457,11.17956566,217.71,217.59,11.17956566]
[1737136141758,3.1148,217.72,217.59,11.17956566]
[1737136142457,11.17956566,217.71,217.59,11.17956566]
[1737136143056,4.5935,217.63,217.58,4.5941]
[1737136143249,11.17956566,217.71,217.58,4.5941]
[1737136143452,11.17956566,217.71,217.56,11.17956566]
[1737136143655,11.17956566,217.68,217.56,11.17956566]
[1737136144057,4.5946,217.57,217.55,7.8927]
[1737136144558,11.17956566,217.65,217.55,4.9]
[1737136144860,4.5948,217.56,217.52,4.5956]
[1737136145055,11.17956566,217.65,217.52,4.5956]
[1737136145656,11.17956566,217.65,217.53,4.5954]
[1737136146361,4.5946,217.58,217.53,4.5954]
[1737136147354,4.594,217.6,217.55,4.5949]
[1737136147556,11.17956566,217.68,217.54,11.17956566]
[1737136148262,11.17956566,217.68,217.56,4.5948]
[1737136148263,4.5939,217.61,217.56,4.5948]
[1737136148762,4.5939,217.61,217.54,11.17956566]
[1737136148960,4.5939,217.61,217.57,4.5945]
[1737136149458,4.5939,217.61,217.54,11.17956566]
[1737136149654,4.5939,217.6,217.56,4.5947]
[1737136151063,11.17956566,217.65,217.51,1.4786]
[1737136151559,4.5948,217.56,217.52,4.5954]
[1737136151764,11.17956566,217.65,217.51,1.4786]
[1737136151963,4.5955,217.53,217.5,3.0574]
[1737136152361,11.17956566,217.59,217.47,11.17956566]
[1737136152560,4.5963,217.49,217.45,4.5971]
[1737136152762,11.17956566,217.56,217.44,20.71156566]
[1737136153166,4.5965,217.48,217.44,25.30886566]
[1737136153567,11.17956566,217.56,217.44,9.532]
[1737136153768,11.17956566,217.56,217.44,7.9538]
[1737136154366,4.5965,217.48,217.44,7.9538]
[1737136155067,2.7856,217.6,217.44,19.13336566]
[1737136155270,11.17956566,217.59,217.44,19.13336566]
[1737136155972,11.17956566,217.59,217.46,4.5969]
[1737136156774,11.17956566,217.59,217.47,4.5967]
[1737136157472,4.596,217.51,217.47,15.77626566]
[1737136158473,4.596,217.51,217.47,4.5967]
[1737136159376,4.5954,217.53,217.47,11.17956566]
[1737136159578,1.5391,217.61,217.47,11.17956566]
[1737136159974,4.5952,217.55,217.5,4.596]
[1737136160972,4.5952,217.55,217.51,4.5957]
[1737136162980,1.5391,217.61,217.47,11.17956566]
[1737136163186,11.17956566,217.57,217.44,7.9538]
[1737136163780,4.5954,217.54,217.45,4.5971]
[1737136163977,11.17956566,217.57,217.45,4.5971]
[1737136164278,4.5962,217.5,217.45,4.5971]
[1737136166480,4.5963,217.49,217.45,4.5971]
[1737136168283,4.5961,217.5,217.46,4.5969]
[1737136168484,11.17956566,217.6,217.48,11.17956566]
[1737136168683,1.5391,217.61,217.48,11.17956566]
[1737136168883,1.5391,217.61,217.52,4.5954]
[1737136169081,11.17956566,217.63,217.48,11.17956566]
[1737136169384,11.17956566,217.63,217.51,11.17956566]
[1737136169680,11.17956566,217.63,217.54,4.5951]
[1737136169878,11.17956566,217.63,217.51,11.17956566]
[1737136170081,4.595,217.55,217.5,4.5958]
[1737136170881,4.595,217.55,217.51,4.5957]
[1737136171282,4.5948,217.56,217.48,11.17956566]
[1737136171474,4.5948,217.56,217.52,4.5956]
[1737136171681,4.5948,217.56,217.48,11.17956566]
[1737136172077,11.17956566,217.63,217.48,11.17956566]
[1737136172277,4.5946,217.57,217.48,11.17956566]
[1737136172679,11.17956566,217.63,217.51,4.5957]
[1737136172680,4.5949,217.56,217.51,4.5957]
[1737136173885,4.5943,217.59,217.54,4.595]
[1737136174081,11.17956566,217.63,217.48,11.17956566]
[1737136174281,11.17956566,217.6,217.45,11.17956566]
[1737136174482,4.5958,217.52,217.47,4.5966]
[1737136175084,11.17956566,217.57,217.45,11.17956566]
[1737136175284,11.17956566,217.57,217.44,3.0538]
[1737136175586,11.17956566,217.54,217.44,3.0538]
[1737136175977,11.17956566,217.57,217.44,3.0538]
[1737136176179,4.5961,217.5,217.45,4.5969]
[1737136176379,4.5961,217.5,217.44,14.23336566]
[1737136176687,11.17956566,217.57,217.47,4.5966]
[1737136176887,11.17956566,217.57,217.44,14.23336566]
[1737136177286,11.17956566,217.6,217.44,14.23336566]
[1737136177785,4.5957,217.52,217.44,14.23336566]
[1737136177996,11.17956566,217.6,217.44,14.23336566]
[1737136178289,4.5949,217.56,217.47,4.5965]
[1737136178482,11.17956566,217.6,217.47,4.5965]
[1737136179190,4.5956,217.52,217.48,4.5964]
[1737136180393,11.17956566,217.6,217.44,14.23336566]
[1737136180587,11.17956566,217.57,217.46,4.5967]
[1737136180892,11.17956566,217.57,217.44,14.23336566]
[1737136180893,11.17956566,217.54,217.44,1.4573]
[1737136181087,11.17956566,217.51,217.38,1.5496]
[1737136181986,4.597,217.46,217.38,1.5496]
[1737136182389,11.17956566,217.51,217.41,4.5978]
[1737136182590,4.5967,217.48,217.4,11.17956566]
[1737136182789,11.17956566,217.54,217.4,11.17956566]
[1737136183287,11.17956566,217.54,217.43,4.5974]
[1737136184287,11.17956566,217.54,217.44,4.5973]
[1737136184490,4.5966,217.48,217.44,4.5973]
[1737136185190,11.17956566,217.54,217.42,4.5975]
[1737136185497,11.17956566,217.48,217.38,1.5496]
[1737136186596,11.17956566,217.52,217.39,11.17956566]
[1737136187195,11.17956566,217.52,217.39,4.5983]
[1737136188196,4.5977,217.43,217.39,4.5983]
[1737136188594,4.5979,217.42,217.38,6.1481]
[1737136188900,11.17956566,217.49,217.36,12.63246566]
[1737136189902,4.5983,217.4,217.36,17.23126566]
[1737136190400,11.17956566,217.49,217.36,12.63246566]
[1737136191009,4.5977,217.43,217.38,4.5985]
[1737136192107,11.17956566,217.49,217.38,4.5985]
[1737136192709,4.5977,217.43,217.38,4.5985]
[1737136194910,4.5978,217.42,217.38,4.5985]
[1737136196211,11.17956566,217.52,217.39,11.17956566]
[1737136196415,4.5974,217.44,217.4,4.598]
[1737136197312,4.5976,217.43,217.4,4.598]
[1737136197515,7.14790185,217.46,217.39,7.14790185]
[1737136198014,7.14790185,217.46,217.18,26.26853693]
[1737136198216,7.14790185,217.46,217.39,7.14790185]
[1737136198713,4.5982,217.4,217.39,7.14790185]
[1737136199411,7.14790185,217.48,217.39,7.14790185]
[1737136199615,4.5979,217.41,217.37,4.5986]
[1737136200014,4.5974,217.44,217.4,4.598]
[1737136200317,1.5867,217.55,217.31,2.973]
[1737136200318,1.5867,217.55,217.41,4.9]
[1737136200515,4.5956,217.52,217.47,4.5965]
[1737136200719,1.4809,217.56,217.5,7.14790185]
[1737136201716,185.2648269,217.62,217.52,7.14790185]
[1737136201916,4.5952,217.55,217.54,7.14790185]
[1737136202315,1.5484,217.63,217.54,7.14790185]
[1737136202514,4.5944,217.58,217.56,7.14790185]
[1737136202716,1.5484,217.63,217.42,18.3416]
[1737136202717,7.14790185,217.6,217.42,4.5516]
[1737136202913,7.14790185,217.58,217.51,7.14790185]
[1737136203313,1.5484,217.63,217.51,11.15354952]
[1737136203519,11.15354952,217.62,217.51,11.15354952]
[1737136203717,4.5956,217.53,217.51,11.15354952]
[1737136204116,4.5956,217.53,217.48,11.15354952]
[1737136204416,11.15354952,217.62,217.48,11.15354952]
[1737136204617,4.5957,217.52,217.48,15.74984952]
[1737136204920,11.15354952,217.59,217.45,11.15354952]
[1737136205122,11.15354952,217.59,217.45,15.75064952]
[1737136205818,11.15354952,217.59,217.45,11.15354952]
[1737136206120,11.15354952,217.56,217.43,4.9]
[1737136206311,11.15354952,217.53,217.43,4.9]
[1737136209023,4.596,217.5,217.43,4.9]
[1737136209322,1.2949,217.57,217.45,11.15354952]
[1737136209620,1.2949,217.57,217.43,4.9]
[1737136209822,11.15354952,217.54,217.43,4.9]
[1737136210018,11.15354952,217.51,217.38,11.15354952]
[1737136211625,11.15354952,217.51,217.36,4.5988]
[1737136211826,11.15354952,217.48,217.35,11.15354952]
[1737136212927,4.599,217.37,217.35,11.15354952]
[1737136213424,11.15354952,217.48,217.32,16.05354952]
[1737136213721,4.599,217.36,217.32,20.65334952]
[1737136213927,11.15354952,217.45,217.29,15.67044952]
[1737136214125,11.15354952,217.45,217.3,4.9]
[1737136214523,4.5992,217.36,217.31,4.6]
[1737136214828,11.15354952,217.45,217.31,4.6]
[1737136215429,4.5999,217.32,217.29,15.67044952]
[1737136216226,11.15354952,217.42,217.29,15.67044952]
[1737136216426,4.6001,217.31,217.29,15.67044952]
[1737136216628,11.15354952,217.39,217.28,86.04]
[1737136216828,4.6005,217.29,217.28,86.04]
[1737136217629,4.6009,217.27,217.26,11.15354952]
[1737136218132,11.15354952,217.36,217.23,11.15354952]
[1737136218535,4.6012,217.26,217.23,11.15354952]
[1737136219229,11.15354952,217.36,217.23,11.15354952]
[1737136219429,4.6009,217.27,217.23,11.15354952]
[1737136219637,11.15354952,217.33,217.2,11.15354952]
[1737136220034,11.15354952,217.33,217.16,4.9]
[1737136220035,4.6019,217.23,217.18,4.6028]
[1737136220227,11.15354952,217.3,217.17,11.15354952]
[1737136220432,11.15354952,217.27,217.13,11.15354952]
[1737136220730,11.15354952,217.24,217.13,11.15354952]
[1737136221931,4.6022,217.21,217.13,11.15354952]
[1737136222134,11.15354952,217.24,217.13,11.15354952]
[1737136222730,1.524,217.23,217.13,11.15354952]
[1737136222935,4.6024,217.2,217.13,11.15354952]
[1737136223130,1.524,217.23,217.13,11.15354952]
[1737136223328,1.524,217.23,217.12,4.6041]
[1737136223531,4.6038,217.14,217.08,4.6047]
[1737136223933,11.15354952,217.21,217.07,11.15354952]
[1737136225246,11.15354952,217.21,217.08,4.6049]
[1737136225745,4.6038,217.14,217.08,4.6049]
[1737136226244,4.6031,217.17,217.1,11.15354952]
[1737136226438,1.524,217.23,217.1,11.15354952]
[1737136227243,11.15354952,217.27,217.13,11.15354952]
[1737136227644,11.15354952,217.27,217.14,1.4829]
[1737136228045,11.15354952,217.27,217.14,6.3829]
[1737136228440,62.83608071,217.3,217.16,11.15354952]
[1737136228640,185.2648269,217.33,217.2,11.15354952]
[1737136228840,185.2648269,217.33,217.23,11.15354952]
[1737136229045,185.2648269,217.33,217.23,16.05354952]
[1737136229247,185.2648269,217.33,217.26,11.15354952]
[1737136229450,4.5986,217.38,217.32,4.5998]
[1737136229648,29.10534526,217.42,217.29,11.15354952]
[1737136229849,1.5533,217.44,217.3,3.0381]
[1737136230050,4.5984,217.39,217.33,4.5996]
[1737136230253,0.91983626,217.43,217.32,11.15354952]
[1737136230450,0.91983626,217.43,217.32,16.05354952]
[1737136230646,4.5982,217.4,217.32,20.65324952]
[1737136230946,4.5982,217.4,217.32,16.05354952]
[1737136231353,4.5982,217.4,217.32,4.9]
[1737136232257,4.5982,217.4,217.33,4.5995]
[1737136234154,4.5981,217.41,217.34,4.5994]
[1737136234357,23.8584098,217.48,217.34,4.5994]
[1737136234554,0.84523999,217.47,217.34,4.5994]
[1737136234954,4.5983,217.4,217.34,4.5994]
[1737136235657,4.5983,217.4,217.32,4.9]
[1737136235856,4.5983,217.4,217.35,4.5992]
[1737136236256,4.5983,217.4,217.3,3.0381]
[1737136236257,4.5993,217.35,217.3,3.0381]
[1737136236452,17.87378575,217.4,217.3,3.0381]
[1737136236654,17.87378575,217.4,217.26,4.9]
[1737136237053,17.87378575,217.36,217.26,4.9]
[1737136237553,17.87378575,217.36,217.24,1.4829]
[1737136237957,4.6003,217.3,217.25,4.6011]
[1737136238453,4.6003,217.3,217.24,1.4829]
[1737136238861,4.6003,217.3,217.25,4.6013]
[1737136240261,4.6003,217.3,217.24,6.0844]
[1737136240558,4.6008,217.28,217.24,1.4829]
[1737136240964,17.87378575,217.36,217.24,1.4829]
[1737136241361,4.6004,217.3,217.24,1.4829]
[1737136241555,17.87378575,217.36,217.26,4.6009]
[1737136241762,17.87378575,217.36,217.24,1.4829]
[1737136241962,4.6,217.32,217.24,1.4829]
[1737136242159,17.87378575,217.44,217.24,19.35668575]
[1737136242362,4.5983,217.4,217.28,17.87378575]
[1737136242567,185.2648269,217.45,217.28,17.87378575]
[1737136242964,23.8584098,217.48,217.28,17.87378575]
[1737136243164,0.84521689,217.47,217.28,17.87378575]
[1737136243568,17.87378575,217.44,217.28,17.87378575]
[1737136243761,17.87378575,217.44,217.28,4.6007]
[1737136243966,0.84536765,217.43,217.26,4.9]
[1737136244369,0.84536765,217.43,217.26,6.4328]
[1737136245165,4.5999,217.32,217.27,4.6008]
[1737136246572,4.5985,217.39,217.29,4.6004]
[1737136246869,17.87378575,217.44,217.29,4.6004]
[1737136247069,0.84536032,217.43,217.29,4.6004]
[1737136247372,17.87378575,217.4,217.26,6.4328]
[1737136247766,17.87378575,217.4,217.26,11.0337]
[1737136248163,17.87378575,217.4,217.26,1.5328]
[1737136248372,17.87378575,217.36,217.26,1.5328]
[1737136248666,17.87378575,217.36,217.24,1.4829]
[1737136248873,17.87378575,217.36,217.22,6.4333]
[1737136248874,17.87378575,217.36,217.22,1.5333]
[1737136249572,4.6015,217.25,217.22,1.5333]
[1737136249871,17.87378575,217.36,217.22,1.5333]
[1737136250074,4.6015,217.25,217.22,1.5333]
[1737136250369,17.87378575,217.32,217.2,4.6023]
[1737136250870,4.6017,217.24,217.2,4.6023]
[1737136251073,17.87378575,217.32,217.2,4.6023]
[1737136251370,11.18936573,217.29,217.18,1.504]
[1737136252473,11.18936573,217.29,217.18,6.1067]
[1737136253073,4.602,217.22,217.18,6.1067]
[1737136254371,4.602,217.22,217.18,1.504]
[1737136254573,11.18936573,217.26,217.15,1.5667]
[1737136255468,4.6028,217.18,217.15,1.5667]
[1737136255777,4.6028,217.18,217.12,11.18936573]
[1737136256170,4.6028,217.18,217.13,4.6039]
[1737136257270,4.6028,217.18,217.14,4.6037]
[1737136258270,11.18936573,217.26,217.12,11.18936573]
[1737136258477,11.18936573,217.26,217.13,4.6039]
[1737136259073,11.18936573,217.23,217.1,4.9]
[1737136259271,11.18936573,217.23,217.09,11.18936573]
[1737136259272,11.18936573,217.23,217.11,4.6041]
[1737136259472,11.18936573,217.2,217.08,6.463]
[1737136259776,4.6041,217.13,217.08,6.1679]
[1737136260173,11.18936573,217.2,217.08,6.1679]
[1737136260676,11.18936573,217.2,217.08,1.563]
[1737136261474,4.456,217.27,217.12,11.18936573]
[1737136261677,0.84600225,217.26,217.12,11.18936573]
[1737136262075,0.84600225,217.26,217.16,4.6032]
[1737136262275,196.45419263,217.28,217.15,11.18936573]
[1737136262477,11.18936573,217.25,217.14,4.9]
[1737136262676,4.6034,217.16,217.14,4.9]
[1737136263075,11.18936573,217.25,217.14,4.9]
[1737136263584,11.18936573,217.28,217.15,11.18936573]
[1737136264079,0.84593919,217.27,217.14,4.9]
[1737136264283,11.18936573,217.28,217.14,16.08936573]
[1737136264582,4.6021,217.22,217.18,4.6028]
[1737136264776,11.18936573,217.28,217.14,16.08936573]
[1737136264973,185.2648269,217.3,217.17,11.18936573]
[1737136265376,185.2648269,217.3,217.18,4.591]
[1737136265577,4.6014,217.25,217.18,4.591]
[1737136265876,185.2648269,217.3,217.18,4.591]
[1737136266077,4.6009,217.28,217.2,11.18936573]
[1737136266377,185.2648269,217.3,217.2,11.18936573]
[1737136266572,11.18936573,217.31,217.18,4.591]
[1737136267078,4.6009,217.28,217.19,4.6025]
[1737136267275,55.52392432,217.33,217.2,11.18936573]
[1737136268377,4.6015,217.25,217.2,15.79176573]
[1737136268576,11.18936573,217.31,217.18,4.591]
[1737136268777,4.6009,217.28,217.18,4.591]
[1737136268981,11.18936573,217.31,217.18,9.1937]
[1737136269783,4.6009,217.28,217.18,9.1937]
[1737136269980,55.52392432,217.33,217.2,11.18936573]
[1737136270983,55.52392432,217.33,217.18,4.591]
[1737136271180,55.52392432,217.33,217.17,11.18936573]
[1737136271482,11.18936573,217.29,217.17,11.18936573]
[1737136271782,55.52392432,217.33,217.2,4.6022]
[1737136271974,55.52392432,217.33,217.17,11.18936573]
[1737136272177,4.6013,217.25,217.21,4.6021]
[1737136272685,4.6013,217.25,217.17,11.18936573]
[1737136272883,4.6013,217.25,217.2,4.6024]
[1737136273580,4.6013,217.25,217.17,11.18936573]
[1737136273884,11.18936573,217.31,217.17,11.18936573]
[1737136273885,4.6011,217.26,217.21,4.6022]
[1737136274382,11.18936573,217.31,217.21,4.6022]
[1737136274784,4.6007,217.28,217.21,4.6022]
[1737136274976,55.52392432,217.33,217.2,11.18936573]
[1737136276079,4.6008,217.28,217.2,11.18936573]
[1737136276284,55.52392432,217.33,217.2,11.18936573]
[1737136276486,1.4461,217.35,217.23,11.18936573]
[1737136276798,11.18936573,217.37,217.27,4.6007]
[1737136276799,4.5997,217.33,217.27,4.6007]
[1737136276985,4.5997,217.33,217.24,4.9]
[1737136277185,11.18936573,217.37,217.24,4.9]
[1737136277386,11.18936573,217.37,217.25,4.6011]
[1737136277583,11.18936573,217.37,217.24,4.9]
[1737136278085,11.18936573,217.37,217.26,4.6009]
[1737136278290,11.18936573,217.37,217.24,4.9]
[1737136278486,4.5992,217.35,217.3,4.6002]
[1737136278687,185.2648269,217.39,217.26,11.18936573]
[1737136278887,185.2648269,217.39,217.29,11.18936573]
[1737136279089,185.2648269,217.39,217.26,11.18936573]
[1737136279289,11.18936573,217.41,217.26,11.18936573]
[1737136279488,4.5985,217.39,217.33,4.5996]
[1737136279689,11.18936573,217.41,217.33,4.5996]
[1737136279891,185.2648269,217.43,217.3,11.18936573]
[1737136280191,4.5979,217.41,217.33,4.5994]
[1737136280387,4.5979,217.41,217.33,4.9]
[1737136280987,4.5982,217.4,217.34,4.5992]
[1737136281191,4.5982,217.4,217.33,16.08936573]
[1737136281586,196.45419263,217.45,217.33,16.08936573]
[1737136281792,4.5986,217.38,217.33,20.68896573]
[1737136282293,196.45419263,217.45,217.33,16.08936573]
[1737136282494,185.2648269,217.45,217.33,16.08936573]
[1737136283093,4.5979,217.42,217.33,16.08936573]
[1737136283584,4.5979,217.42,217.36,4.5988]
[1737136284095,4.5979,217.42,217.35,4.5991]
[1737136284294,4.598,217.41,217.33,16.08936573]
[1737136284996,11.18936573,217.45,217.33,4.9]
[1737136286589,11.18936573,217.45,217.3,11.18936573]
[1737136286792,11.18936573,217.45,217.31,4.9]
[1737136287194,4.5987,217.38,217.33,4.5996]
[1737136287888,4.5987,217.38,217.34,4.5994]
[1737136288394,4.598,217.41,217.36,4.5989]
[1737136288591,11.18936573,217.45,217.33,11.18936573]
[1737136288895,4.5983,217.4,217.33,11.18936573]
[1737136289091,4.5983,217.4,217.35,4.5992]
[1737136289493,4.5984,217.39,217.35,4.5992]
[1737136289689,11.18936573,217.45,217.36,4.599]
[1737136289996,11.18936573,217.45,217.31,16.08936573]
[1737136290398,11.18936573,217.45,217.36,4.5989]
[1737136290595,11.18936573,217.45,217.31,16.08936573]
[1737136290896,5.98462405,217.48,217.31,16.08936573]
[1737136290897,4.5977,217.43,217.37,11.18936573]
[1737136291097,5.98462405,217.48,217.37,11.18936573]
[1737136291394,5.98462405,217.48,217.4,11.18936573]
[1737136292298,5.98462405,217.48,217.37,11.18936573]
[1737136292498,5.98462405,217.48,217.35,1.4437]
[1737136292694,11.18936573,217.47,217.34,12.77386573]
[1737136292901,11.18936573,217.47,217.33,1.5909]
[1737136293095,11.18936573,217.44,217.31,11.18936573]
[1737136294101,11.18936573,217.44,217.34,4.5994]
[1737136294292,11.18936573,217.44,217.31,11.18936573]
[1737136294497,17.17398978,217.48,217.34,11.18936573]
[1737136294804,4.598,217.41,217.37,4.5987]
[1737136294998,5.98462405,217.48,217.37,11.18936573]
[1737136295197,4.5976,217.43,217.37,11.18936573]
[1737136295595,5.98462405,217.48,217.37,11.18936573]
[1737136295795,4.5975,217.43,217.39,4.5982]
[1737136295990,5.98462405,217.48,217.37,11.18936573]
[1737136296192,4.5981,217.41,217.37,4.5987]
[1737136296597,5.98462405,217.48,217.37,11.18936573]
[1737136297099,17.17398978,217.48,217.29,20.1337]
[1737136297400,17.17398978,217.48,217.33,11.18936573]
[1737136297996,4.5984,217.39,217.33,11.18936573]
[1737136298191,11.18936573,217.45,217.33,11.18936573]
[1737136298694,17.17398978,217.48,217.33,11.18936573]
[1737136298900,0.84516456,217.47,217.33,11.18936573]
[1737136299605,17.17398978,217.48,217.33,11.18936573]
[1737136299904,4.5981,217.41,217.37,4.5987]
[1737136300104,17.17398978,217.48,217.37,4.5987]
[1737136300293,17.17398978,217.48,217.33,11.18936573]
[1737136300602,17.17398978,217.48,217.38,4.5986]
[1737136300999,17.17398978,217.48,217.36,11.18936573]
[1737136301501,17.17398978,217.48,217.33,11.18936573]
[1737136301801,17.17398978,217.48,217.36,4.5988]
[1737136302404,17.17398978,217.48,217.33,11.18936573]
[1737136302594,17.17398978,217.48,217.37,4.5988]
[1737136302902,17.17398978,217.48,217.33,11.18936573]
[1737136303106,17.17398978,217.48,217.38,4.5986]
[1737136303607,17.17398978,217.48,217.36,11.18936573]
[1737136303798,5.98462405,217.48,217.36,11.18936573]
[1737136304199,4.5974,217.44,217.36,11.18936573]
[1737136304405,5.98462405,217.48,217.4,4.598]
[1737136304901,4.5974,217.44,217.4,4.598]
[1737136305296,4.5969,217.46,217.43,4.5975]
[1737136305502,5.98462405,217.48,217.39,11.18936573]
[1737136306404,4.5971,217.45,217.41,4.5978]
[1737136306801,5.98462405,217.48,217.39,11.18936573]
[1737136307004,4.5967,217.47,217.43,4.5975]
[1737136308512,10.58112405,217.48,217.44,4.5973]
[1737136308712,5.98462405,217.48,217.42,11.18936573]
[1737136309012,4.5971,217.46,217.41,4.5978]